fUST/lending_fUST_20250419
["ID","MTS","AMOUNT","RATE_DAILY","PERIOD"]
[358380952,1745032258249,-500.0,0.00022191,2]
[358380953,1745032258259,-500.0,0.00022191,2]
[358380954,1745032258268,-500.0,0.00022191,2]
[358380955,1745032258278,-500.0,0.00022191,2]
[358380956,1745032258287,-577.31,0.00022191,2]
[358380957,1745032258297,-500.0,0.00022191,2]
[358380958,1745032258307,-500.0,0.00022191,2]
[358380959,1745032258317,-500.0,0.00022191,2]
[358380960,1745032258326,-500.0,0.00022191,2]
[358380961,1745032258336,-678.98,0.00022191,2]
[358380962,1745032258346,-500.0,0.00022191,2]
[358380963,1745032258356,-500.0,0.00022191,2]
[358380964,1745032258366,-500.0,0.00022191,2]
[358380965,1745032258376,-500.0,0.00022191,2]
[358380966,1745032258386,-500.0,0.00022191,2]
[358380967,1745032258395,-660.36,0.00022191,2]
[358380968,1745032258405,-523.08,0.00022191,2]
[358380969,1745032258415,-500.0,0.00022191,2]
[358380970,1745032258425,-500.0,0.00022191,2]
[358380971,1745032258435,-500.0,0.00022191,2]
[358380972,1745032258444,-500.0,0.00022191,2]
[358380973,1745032258454,-500.0,0.00022191,2]
[358380974,1745032258463,-520.412856,0.00022191,2]
[358380975,1745032258473,-500.0,0.00022191,2]
[358380976,1745032258483,-635.21,0.00022191,2]
[358380977,1745032258493,-664.17,0.00022191,2]
[358380978,1745032258502,-500.0,0.00022191,2]
[358380979,1745032258512,-500.0,0.00022191,2]
[358380980,1745032258522,-500.0,0.00022191,2]
[358380981,1745032258532,-500.0,0.00022191,2]
[358380982,1745032258546,-500.0,0.00022191,2]
[358380983,1745032258555,-500.0,0.00022191,2]
[358380984,1745032258566,-3536.31,0.00022191,2]
[358380985,1745032258575,-500.0,0.00022191,2]
[358380986,1745032258585,-500.0,0.00022191,2]
[358380987,1745032258595,-500.0,0.00022191,2]
[358380988,1745032258604,-500.0,0.00022191,2]
[358380989,1745032258614,-500.0,0.00022191,2]
[358380990,1745032258623,-500.0,0.00022191,2]
[358380991,1745032258633,-500.0,0.00022191,2]
[358380992,1745032258643,-700.54,0.00022191,2]
[358380993,1745032258652,-500.0,0.00022191,2]
[358380994,1745032258661,-500.0,0.00022191,2]
[358380995,1745032258671,-500.0,0.00022191,2]
[358380996,1745032258680,-1026.98,0.00022191,2]
[358380997,1745032258689,-500.0,0.00022191,2]
[358380998,1745032258699,-506.96227782,0.00022191,2]
[358380999,1745032258708,-500.0,0.00022191,2]
[358381000,1745032258717,-500.0,0.00022191,2]
[358381001,1745032258726,-500.0,0.00022191,2]
[358381002,1745032258735,-504.99685119,0.00022191,2]
[358381003,1745032258745,-500.0,0.00022191,2]
[358381004,1745032258754,-500.0,0.00022191,2]
[358381005,1745032258763,-500.0,0.00022191,2]
[358381006,1745032258773,-500.0,0.00022191,2]
[358381007,1745032258783,-501.31110227,0.00022191,2]
[358381008,1745032258793,-500.0,0.00022191,2]
[358381009,1745032258803,-864.16,0.00022191,2]
[358381010,1745032258814,-500.0,0.00022191,2]
[358381011,1745032258824,-500.0,0.00022191,2]
[358381012,1745032258834,-500.0,0.00022191,2]
[358381013,1745032258844,-503.88657481,0.00022191,2]
[358381014,1745032258854,-500.0,0.00022191,2]
[358381015,1745032258863,-1049.33,0.00022191,2]
[358381016,1745032258873,-500.0,0.00022191,2]
[358381017,1745032258883,-500.0,0.00022191,2]
[358381018,1745032258892,-500.0,0.00022191,2]
[358381019,1745032258902,-1419.39,0.00022191,2]
[358381020,1745032258912,-500.0,0.00022191,2]
[358381021,1745032258922,-500.0,0.00022191,2]
[358381022,1745032258932,-991.64,0.00022191,2]
[358381023,1745032258943,-931.16,0.00022191,2]
[358381024,1745032258952,-500.0,0.00022191,2]
[358381025,1745032258962,-500.0,0.00022191,2]
[358381026,1745032258972,-500.0,0.00022191,2]
[358381027,1745032258981,-500.0,0.00022191,2]
[358381028,1745032258991,-500.0,0.00022191,2]
[358381029,1745032258999,-1419.51,0.00022191,2]
[358381030,1745032259009,-645.03,0.00022191,2]
[358381031,1745032259019,-500.0,0.00022191,2]
[358381032,1745032259028,-1013.54,0.00022191,2]
[358381033,1745032259038,-500.0,0.00022191,2]
[358381034,1745032259047,-500.0,0.00022191,2]
[358381035,1745032259057,-500.0,0.00022191,2]
[358381036,1745032259067,-500.0,0.00022191,2]
[358381037,1745032259077,-744.91,0.00022191,2]
[358381038,1745032259091,-500.0,0.00022191,2]
[358381039,1745032259101,-500.0,0.00022191,2]
[358381040,1745032259111,-1003.67,0.00022191,2]
[358381041,1745032259121,-500.0,0.00022191,2]
[358381042,1745032259131,-500.0,0.00022191,2]
[358381043,1745032259141,-840.59,0.00022191,2]
[358381044,1745032259151,-503.39868373,0.00022191,2]
[358381045,1745032259160,-500.0,0.00022191,2]
[358381046,1745032259170,-500.0,0.00022191,2]
[358381047,1745032259180,-196.83916297,0.00022191,2]
[358381048,1745032259189,-500.0,0.00022191,2]
[358381049,1745032259199,-500.0,0.00022191,2]
[358381050,1745032259208,-500.0,0.00022191,2]
[358381051,1745032259218,-500.0,0.00022191,2]
[358381052,1745032259228,-500.0,0.00022191,2]
[358381053,1745032259238,-500.0,0.00022191,2]
[358381054,1745032259247,-258.54697025,0.00022191,2]
[358381055,1745032259259,-500.0,0.00022191,2]
[358381056,1745032259268,-2015.95,0.00022191,2]
[358381057,1745032259278,-500.0,0.00022191,2]
[358381058,1745032259288,-500.0,0.00022191,2]
[358381059,1745032259297,-500.0,0.00022191,2]
[358381060,1745032259307,-500.0,0.00022191,2]
[358381061,1745032259316,-4154.4,0.00022191,2]
[358381062,1745032259326,-500.0,0.00022191,2]
[358381063,1745032259335,-500.0,0.00022191,2]
[358381064,1745032259345,-500.0,0.00022191,2]
[358381065,1745032259355,-500.0,0.00022191,2]
[358381066,1745032259364,-500.0,0.00022191,2]
[358381067,1745032259374,-500.0,0.00022191,2]
[358381068,1745032259384,-571.12,0.00022191,2]
[358381069,1745032259393,-500.0,0.00022191,2]
[358381070,1745032259403,-1053.87,0.00022191,2]
[358381071,1745032259412,-500.0,0.00022191,2]
[358381072,1745032259421,-500.0,0.00022191,2]
[358381073,1745032259431,-500.0,0.00022191,2]
[358381074,1745032259440,-500.0,0.00022191,2]
[358381075,1745032259450,-500.0,0.00022191,2]
[358381076,1745032259460,-500.0,0.00022191,2]
[358381077,1745032259470,-500.0,0.00022191,2]
[358381078,1745032259479,-500.0,0.00022191,2]
[358381079,1745032259488,-1386.94,0.00022191,2]
[358381080,1745032259497,-500.0,0.00022191,2]
[358381081,1745032259507,-672.92,0.00022191,2]
[358381082,1745032259516,-500.0,0.00022191,2]
[358381083,1745032259525,-4111.99,0.00022191,2]
[358381084,1745032259535,-500.0,0.00022191,2]
[358381085,1745032259547,-501.47862747,0.00022191,2]
[358381086,1745032259557,-500.0,0.00022191,2]
[358381087,1745032259566,-500.0,0.00022191,2]
[358381088,1745032259576,-500.0,0.00022191,2]
[358381089,1745032259585,-500.0,0.00022191,2]
[358381090,1745032259595,-500.0,0.00022191,2]
[358381091,1745032259604,-1009.7,0.00022191,2]
[358381092,1745032259613,-2477.55,0.00022191,2]
[358381093,1745032259623,-500.0,0.00022191,2]
[358381094,1745032259633,-500.0,0.00022191,2]
[358381095,1745032259643,-500.0,0.00022191,2]
[358381096,1745032259652,-500.0,0.00022191,2]
[358381097,1745032259661,-500.0,0.00022191,2]
[358381098,1745032259671,-500.0,0.00022191,2]
[358381099,1745032259680,-13143.84,0.00022191,2]
[358381100,1745032259690,-151.71476074,0.00022191,2]
[358381101,1745032259699,-500.0,0.00022191,2]
[358381102,1745032259708,-500.0,0.00022191,2]
[358381103,1745032259718,-295.19745281,0.00022191,2]
[358381104,1745032260080,-204.80254719,0.00022191,2]
[358381105,1745032260090,-500.0,0.00022191,2]
[358381106,1745032260100,-373.82662822,0.00022191,2]
[358381107,1745032260109,-667.55,0.00022191,2]
[358381108,1745032260118,-500.0,0.00022191,2]
[358381109,1745032260128,-500.0,0.00022191,2]
[358381110,1745032260138,-500.0,0.00022191,2]
[358381111,1745032260147,-762.31,0.00022191,2]
[358381112,1745032260157,-520.32833054,0.00022191,2]
[358381113,1745032260167,-500.0,0.00022191,2]
[358381114,1745032260176,-183.34237573,0.00022191,2]
[358381115,1745032260186,-539.46,0.00022191,2]
[358381116,1745032260198,-706.06,0.00022191,2]
[358381117,1745032260208,-500.0,0.00022191,2]
[358381118,1745032260218,-913.15,0.00022191,2]
[358381119,1745032260228,-500.0,0.00022191,2]
[358381120,1745032260237,-506.94248603,0.00022191,2]
[358381121,1745032260247,-500.0,0.00022191,2]
[358381122,1745032260257,-500.0,0.00022191,2]
[358381123,1745032260266,-500.0,0.00022191,2]
[358381124,1745032260276,-1069.73,0.00022191,2]
[358381125,1745032260285,-563.27,0.00022191,2]
[358381126,1745032260294,-883.13,0.00022191,2]
[358381127,1745032260304,-500.0,0.00022191,2]
[358381128,1745032260314,-765.61,0.00022191,2]
[358381129,1745032260325,-500.0,0.00022191,2]
[358381130,1745032260335,-500.0,0.00022191,2]
[358381131,1745032260346,-402.50569681,0.00022191,2]
[358381132,1745032260356,-1651.59,0.00022191,2]
[358381133,1745032260366,-279.28600812,0.00022191,2]
[358381134,1745032260377,-500.0,0.00022191,2]
[358381135,1745032260387,-500.0,0.00022191,2]
[358381136,1745032260396,-500.0,0.00022191,2]
[358381137,1745032260406,-1009.01,0.00022191,2]
[358381138,1745032260416,-500.0,0.00022191,2]
[358381139,1745032260427,-500.0,0.00022191,2]
[358381140,1745032260437,-500.0,0.00022191,2]
[358381141,1745032260447,-807.27,0.00022191,2]
[358381142,1745032260457,-500.0,0.00022191,2]
[358381143,1745032260467,-500.0,0.00022191,2]
[358381144,1745032260476,-500.0,0.00022191,2]
[358381145,1745032260486,-500.0,0.00022191,2]
[358381146,1745032260495,-909.33,0.00022191,2]
[358381147,1745032260505,-500.0,0.00022191,2]
[358381148,1745032260515,-346.43297935,0.00022191,2]
[358381149,1745032260524,-514.43,0.00022191,2]
[358381150,1745032260534,-265.53,0.00022191,2]
[358381151,1745032260547,-1055.31,0.00022191,2]
[358381152,1745032260556,-500.0,0.00022191,2]
[358381153,1745032260566,-505.45591761,0.00022191,2]
[358381154,1745032260576,-3266.67,0.00022191,2]
[358381155,1745032260587,-500.0,0.00022191,2]
[358381156,1745032260596,-500.0,0.00022191,2]
[358381157,1745032260606,-500.0,0.00022191,2]
[358381158,1745032260617,-500.0,0.00022191,2]
[358381159,1745032260626,-500.0,0.00022191,2]
[358381160,1745032260637,-500.0,0.00022191,2]
[358381161,1745032260646,-500.0,0.00022191,2]
[358381162,1745032260656,-500.0,0.00022191,2]
[358381163,1745032260666,-728.34,0.00022191,2]
[358381164,1745032260676,-500.0,0.00022191,2]
[358381165,1745032260686,-500.0,0.00022191,2]
[358381166,1745032260695,-5580.2,0.00022191,2]
[358381167,1745032260705,-531.39302848,0.00022191,2]
[358381168,1745032260714,-500.0,0.00022191,2]
[358381169,1745032260724,-583.13,0.00022191,2]
[358381170,1745032260734,-500.0,0.00022191,2]
[358381171,1745032260743,-500.0,0.00022191,2]
[358381172,1745032260753,-573.43,0.00022191,2]
[358381173,1745032260762,-500.0,0.00022191,2]
[358381174,1745032260772,-4923.75,0.00022191,2]
[358381175,1745032260782,-500.0,0.00022191,2]
[358381176,1745032260791,-1005.83,0.00022191,2]
[358381177,1745032260801,-1971.95,0.00022191,2]
[358381178,1745032260810,-500.0,0.00022191,2]
[358381179,1745032260821,-500.0,0.00022191,2]
[358381180,1745032260831,-709.17,0.00022191,2]
[358381181,1745032260840,-500.0,0.00022191,2]
[358381182,1745032260850,-500.0,0.00022191,2]
[358381183,1745032260860,-500.0,0.00022191,2]
[358381184,1745032260870,-500.0,0.00022191,2]
[358381185,1745032260879,-338.94024914,0.00022191,2]
[358381186,1745032260889,-828.09,0.00022191,2]
[358381187,1745032260899,-500.0,0.00022191,2]
[358381188,1745032260908,-500.0,0.00022191,2]
[358381189,1745032260917,-674.13,0.00022191,2]
[358381190,1745032260927,-500.0,0.00022191,2]
[358381191,1745032260937,-500.0,0.00022191,2]
[358381192,1745032260946,-575.07,0.00022191,2]
[358381193,1745032260956,-145.80682612,0.00022191,2]
[358381194,1745032260969,-354.19317388,0.00022191,2]
[358381195,1745032260978,-515.78,0.00022191,2]
[358381196,1745032260988,-500.0,0.00022191,2]
[358381197,1745032260998,-500.0,0.00022191,2]
[358381198,1745032261009,-19933.71,0.00022191,2]
[358381199,1745032261018,-500.0,0.00022191,2]
[358381200,1745032261028,-611.51,0.00022191,2]
[358381201,1745032261038,-500.0,0.00022191,2]
[358381202,1745032261048,-500.0,0.00022191,2]
[358381203,1745032261058,-500.0,0.00022191,2]
[358381204,1745032261067,-500.0,0.00022191,2]
[358381205,1745032261077,-500.0,0.00022191,2]
[358381206,1745032261087,-500.0,0.00022191,2]
[358381207,1745032261097,-500.0,0.00022191,2]
[358381208,1745032261106,-500.0,0.00022191,2]
[358381209,1745032261116,-500.0,0.00022191,2]
[358381210,1745032261127,-500.0,0.00022191,2]
[358381211,1745032261136,-500.0,0.00022191,2]
[358381212,1745032261146,-500.0,0.00022191,2]
[358381213,1745032261156,-500.0,0.00022191,2]
[358381214,1745032261165,-500.0,0.00022191,2]
[358381215,1745032261175,-500.0,0.00022191,2]
[358381216,1745032261184,-7218.07,0.00022191,2]
[358381217,1745032261194,-626.78,0.00022191,2]
[358381218,1745032261204,-500.0,0.00022191,2]
[358381219,1745032261213,-500.0,0.00022191,2]
[358381220,1745032261222,-500.0,0.00022191,2]
[358381221,1745032261231,-309.419914,0.00022191,2]
[358381224,1745032329054,1000.0,0.0001791,2]
[358381225,1745032359387,250.0,0.0001791,2]
[358381228,1745032934665,795.1668266,0.00017538,2]
[358381322,1745033431875,-250.0,0.00018336,2]
[358381323,1745033431884,-469.02796193,0.00018436,2]
[358381325,1745033431895,-155.41472256,0.00018473,2]
[358381327,1745033431905,-151.0,0.00018528,2]
[358381329,1745033431914,-2160.41052653,0.00018536,2]
[358381330,1745033431924,-300.0,0.00018537,2]
[358381331,1745033431934,-300.0,0.00018537,2]
[358381332,1745033431945,-184.61630444,0.00018538,2]
[358381333,1745033431955,-500.0,0.00018538,2]
[358381334,1745033431966,-500.0,0.00018538,2]
[358381335,1745033431976,-500.0,0.00018538,2]
[358381336,1745033431986,-500.0,0.00018538,2]
[358381337,1745033431996,-500.0,0.00018538,2]
[358381338,1745033432006,-500.0,0.00018538,2]
[358381339,1745033432015,-500.0,0.00018538,2]
[358381340,1745033432024,-568.29090208,0.00018538,2]
[358381342,1745033432034,-500.0,0.00018538,2]
[358381344,1745033432043,-238.1408544,0.00018538,2]
[358381346,1745033432053,-500.0,0.00018538,2]
[358381348,1745033432062,-500.0,0.00018538,2]
[358381350,1745033432072,-271.7716802,0.00018538,2]
[358381351,1745033432085,-228.2283198,0.00018538,2]
[358381352,1745033432094,-500.0,0.00018538,2]
[358381353,1745033432104,-500.0,0.00018538,2]
[358381354,1745033432114,-500.0,0.00018538,2]
[358381355,1745033432124,-500.0,0.00018538,2]
[358381356,1745033432133,-500.0,0.00018538,2]
[358381357,1745033432143,-500.0,0.00018538,2]
[358381358,1745033432152,-500.0,0.00018538,2]
[358381359,1745033432162,-556.45442314,0.00018538,2]
[358381360,1745033432170,-500.0,0.00018538,2]
[358381361,1745033432180,-500.0,0.00018538,2]
[358381362,1745033432190,-500.0,0.00018538,2]
[358381363,1745033432200,-500.0,0.00018538,2]
[358381364,1745033432210,-370000.0,0.00018539,2]
[358381365,1745033432220,-500.0,0.00018573,2]
[358381366,1745033432230,-500.0,0.00018573,2]
[358381367,1745033432240,-512.31594649,0.00018573,2]
[358381368,1745033432251,-500.0,0.00018573,2]
[358381369,1745033432260,-500.0,0.00018573,2]
[358381370,1745033432270,-500.0,0.00018573,2]
[358381371,1745033432280,-500.0,0.00018573,2]
[358381372,1745033432290,-500.0,0.00018573,2]
[358381373,1745033432299,-500.0,0.00018573,2]
[358381374,1745033432309,-500.0,0.00018573,2]
[358381375,1745033432318,-286.75918432,0.00018573,2]
[358381376,1745033432329,-500.0,0.00018573,2]
[358381377,1745033432338,-213.39155821,0.00018573,2]
[358381378,1745033432348,-500.70300049,0.00018573,2]
[358381379,1745033432357,-500.0,0.00018573,2]
[358381380,1745033432367,-500.0,0.00018573,2]
[358381381,1745033432379,-500.0,0.00018573,2]
[358381382,1745033432389,-500.0,0.00018573,2]
[358381383,1745033432398,-305.47646024,0.00018573,2]
[358381384,1745033432407,-500.0,0.00018573,2]
[358381385,1745033432418,-500.0,0.00018573,2]
[358381386,1745033432428,-500.0,0.00018573,2]
[358381387,1745033432439,-500.0,0.00018573,2]
[358381388,1745033432450,-500.0,0.00018573,2]
[358381389,1745033432460,-500.0,0.00018573,2]
[358381390,1745033432469,-501.76861823,0.00018573,2]
[358381391,1745033432479,-500.0,0.00018573,2]
[358381392,1745033432489,-151.0,0.00018638,2]
[358381393,1745033432498,-151.0,0.00018638,2]
[358381394,1745033432508,-39215.4675014,0.00018666,2]
[358381395,1745033432525,-1450.10799,0.00018666,2]
[358381396,1745033432536,-65480.73918448,0.00018666,2]
[358381397,1745033432548,-393.70335598,0.00018666,2]
[358381398,1745033432558,-794.71976301,0.000189,2]
[358381399,1745033432568,-300.0,0.00019178,2]
[358381400,1745033432578,-500.0,0.00019395,2]
[358381401,1745033432588,-500.0,0.00019668,2]
[358381402,1745033432598,-1296.24654904,0.000199,2]
[358381403,1745033432609,-2000.0,0.0002,4]
[358381404,1745033432618,-420.0,0.00020215,2]
[358381405,1745033432628,-420.0,0.00020313,2]
[358381406,1745033432638,-500.02658831,0.00020772,2]
[358381407,1745033432647,-1015.94871624,0.00020797,3]
[358381408,1745033432659,-280.29783266,0.00020797,3]
[358381409,1745033432669,-500.84612347,0.00020822,2]
[358381429,1745033438007,-985.13637237,0.00018336,2]
[358381431,1745033438020,-14.86362763,0.00018336,2]
[358381433,1745033438029,-500.0,0.00018573,2]
[358381435,1745033438039,-500.0,0.00018847,2]
[358381436,1745033438048,-38.33972342,0.00019121,2]
[358381437,1745033438059,-461.66027658,0.00019121,2]
[358381438,1745033438069,-99.15387653,0.00020822,2]
[358381439,1745033438079,-159.16,0.00021,2]
[358381440,1745033438088,-80.32713587,0.00021241,2]
[358381441,1745033438103,-419.67286413,0.00021241,2]
[358381442,1745033438113,-498.15127206,0.00021312,2]
[358381443,1745033438122,-472.97586382,0.00021312,2]
[358381444,1745033438238,-366.43405797,0.00021312,2]
[358381445,1745033438248,-420.4931809,0.00021312,2]
[358381446,1745033438257,-160.0,0.00021312,2]
[358381447,1745033438267,-160.0,0.00021312,2]
[358381448,1745033438276,-160.0,0.00021312,2]
[358381449,1745033438286,-33.73067442,0.00021349,2]
[358381450,1745033438298,-466.26932558,0.00021349,2]
[358381451,1745033438308,-153.0,0.0002137,2]
[358381452,1745033438317,-153.0,0.0002137,2]
[358381453,1745033438327,-153.0,0.0002137,2]
[358381454,1745033438336,-153.0,0.0002137,2]
[358381455,1745033438347,-153.0,0.00021578,2]
[358381456,1745033438357,-160.2135551,0.00021616,2]
[358381457,1745033438366,-593.8701224,0.00021616,2]
[358381458,1745033438379,-292.3094095,0.00021616,2]
[358381459,1745033438389,-246.99551096,0.0002166,2]
[358381468,1745033440376,-253.00448904,0.0002166,2]
[358381469,1745033440395,-2000.0,0.00021667,4]
[358381470,1745033440407,-1178.59441865,0.00021693,3]
[358381471,1745033440433,-117.65213025,0.00021693,3]
[358381472,1745033440447,-1008.81,0.000218,2]
[358381473,1745033440460,-708.0,0.00021805,2]
[358381474,1745033440472,-544.0,0.00021805,2]
[358381475,1745033440486,-171.8,0.000219,2]
[358381476,1745033440498,-500.0,0.00021917,2]
[358381477,1745033440510,-500.0,0.00021917,2]
[358381478,1745033440521,-270.73786975,0.00021917,2]
[358381483,1745033443071,-236.17939419,0.00021917,2]
[358381484,1745033443083,-500.0,0.00021917,2]
[358381485,1745033443095,-1071.56,0.00021917,2]
[358381486,1745033443106,-500.0,0.00021917,2]
[358381487,1745033443117,-502.84983536,0.00021917,2]
[358381488,1745033443127,-402.75087359,0.00021917,2]
[358381489,1745033443139,-500.0,0.00021917,2]
[358381490,1745033443150,-500.0,0.00021917,2]
[358381491,1745033443162,-500.0,0.00021917,2]
[358381492,1745033443173,-509.43293034,0.00021917,2]
[358381493,1745033443184,-509.42692498,0.00021917,2]
[358381495,1745033443196,-500.0,0.00021917,2]
[358381496,1745033443208,-941.66,0.00021917,2]
[358381497,1745033443219,-509.89728439,0.00021917,2]
[358381498,1745033443230,-500.0,0.00021917,2]
[358381499,1745033443241,-500.0,0.00021917,2]
[358381500,1745033443252,-507.76641199,0.00021917,2]
[358381501,1745033443264,-506.968897,0.00021917,2]
[358381502,1745033443276,-512.71585409,0.00021917,2]
[358381503,1745033443287,-501.99216536,0.00021917,2]
[358381504,1745033443298,-506.44167704,0.00021917,2]
[358381505,1745033443310,-500.0,0.00021917,2]
[358381506,1745033443322,-545.31,0.00021917,2]
[358381507,1745033443334,-511.79906057,0.00021917,2]
[358381508,1745033443345,-508.16811977,0.00021917,2]
[358381509,1745033443358,-502.2701482,0.00021917,2]
[358381510,1745033443370,-506.50252457,0.00021917,2]
[358381511,1745033443383,-500.14,0.00021917,2]
[358381512,1745033443395,-511.65458844,0.00021917,2]
[358381513,1745033443408,-508.47152842,0.00021917,2]
[358381514,1745033443419,-500.0,0.00021917,2]
[358381515,1745033443432,-506.65374005,0.00021917,2]
[358381516,1745033443444,-507.92490323,0.00021917,2]
[358381517,1745033443456,-500.0,0.00021917,2]
[358381518,1745033443467,-865.7,0.00021917,2]
[358381519,1745033443479,-502.85702377,0.00021917,2]
[358381520,1745033443490,-500.0,0.00021917,2]
[358381521,1745033443502,-500.0,0.00021917,2]
[358381522,1745033443514,-505.52644641,0.00021917,2]
[358381523,1745033443526,-509.001435,0.00021917,2]
[358381524,1745033443537,-507.25417933,0.00021917,2]
[358381525,1745033443549,-505.43018803,0.00021917,2]
[358381526,1745033443560,-500.0,0.00021917,2]
[358381527,1745033443572,-487.93389421,0.00021917,2]
[358381528,1745033443588,-12.06610579,0.00021917,2]
[358381529,1745033443599,-500.0,0.00021917,2]
[358381530,1745033443611,-500.0,0.00021917,2]
[358381531,1745033443622,-457.28444661,0.00021917,2]
[358381532,1745033443634,-151.0,0.00021917,2]
[358381533,1745033443645,-555.77,0.00021917,2]
[358381534,1745033443657,-502.54231932,0.00021917,2]
[358381535,1745033443668,-500.0,0.00021917,2]
[358381536,1745033443680,-500.0,0.00021917,2]
[358381537,1745033443692,-505.88164257,0.00021917,2]
[358381538,1745033443703,-522.37156342,0.00021917,2]
[358381539,1745033443714,-500.0,0.00021917,2]
[358381540,1745033443725,-500.0,0.00021917,2]
[358381541,1745033443736,-500.0,0.00021917,2]
[358381542,1745033443745,-348.71317686,0.00021917,2]
[358381543,1745033443755,-500.0,0.00021917,2]
[358381544,1745033443765,-500.0,0.00021917,2]
[358381545,1745033443775,-500.0,0.00021917,2]
[358381546,1745033443784,-605.33,0.00021917,2]
[358381547,1745033443795,-500.0,0.00021917,2]
[358381548,1745033443806,-500.0,0.00021917,2]
[358381549,1745033443815,-500.0,0.00021917,2]
[358381550,1745033443825,-500.0,0.00021917,2]
[358381551,1745033443834,-529.2,0.00021917,2]
[358381552,1745033443844,-500.0,0.00021917,2]
[358381553,1745033443854,-500.0,0.00021917,2]
[358381554,1745033443864,-500.0,0.00021917,2]
[358381555,1745033443874,-500.0,0.00021917,2]
[358381556,1745033443884,-519.05085048,0.00021917,2]
[358381557,1745033443895,-500.0,0.00021917,2]
[358381558,1745033444154,-500.0,0.00021917,2]
[358381559,1745033444169,-500.0,0.00021917,2]
[358381560,1745033444179,-500.0,0.00021917,2]
[358381561,1745033444189,-500.0,0.00021917,2]
[358381562,1745033444199,-500.0,0.00021917,2]
[358381563,1745033444209,-511.7845775,0.00021917,2]
[358381564,1745033444218,-500.0,0.00021917,2]
[358381565,1745033444228,-500.0,0.00021917,2]
[358381566,1745033444238,-456.38857522,0.00021917,2]
[358381567,1745033444247,-301.89715821,0.00021917,2]
[358381568,1745033444257,-506.57915124,0.00021917,2]
[358381569,1745033444267,-500.0,0.00021917,2]
[358381570,1745033444277,-430.52233845,0.00021917,2]
[358381571,1745033444287,-500.0,0.00021917,2]
[358381572,1745033444296,-508.7551652,0.00021917,2]
[358381573,1745033444305,-500.0,0.00021917,2]
[358381574,1745033444315,-500.0,0.00021917,2]
[358381575,1745033444325,-500.0,0.00021917,2]
[358381576,1745033444335,-500.0,0.00021917,2]
[358381577,1745033444345,-500.0,0.00021917,2]
[358381578,1745033444355,-500.0,0.00021917,2]
[358381579,1745033444364,-222.17138101,0.00021917,2]
[358381580,1745033444374,-500.0,0.00021917,2]
[358381581,1745033444387,-500.0,0.00021917,2]
[358381582,1745033444398,-500.0,0.00021917,2]
[358381583,1745033444407,-500.0,0.00021917,2]
[358381584,1745033444416,-500.0,0.00021917,2]
[358381585,1745033444425,-500.0,0.00021917,2]
[358381586,1745033444435,-500.0,0.00021917,2]
[358381587,1745033444445,-500.0,0.00021917,2]
[358381588,1745033444455,-500.0,0.00021917,2]
[358381589,1745033444464,-500.0,0.00021917,2]
[358381590,1745033444475,-500.0,0.00021917,2]
[358381591,1745033444485,-500.0,0.00021917,2]